[Event "EYCC Open-U14 2019"]
[Site "Bratislava"]
[Date "2019.08.04"]
[Round "3.47"]
[White "Revaliente Montoya, Ciro"]
[Black "Maldonado Mena, German"]
[Result "1-0"]
[ECO "A06"]
[WhiteElo "1917"]
[BlackElo "1822"]
[Annotator "NA"]
[PlyCount "73"]
[EventDate "2019.08.02"]
[EventType "swiss"]
[EventCountry "SVK"]
[SourceTitle "playchess.com"]
[Source "ChessBase"]
[SourceQuality "1"]
[TimeControl "40/5400+30:1800+30"]

1. Nf3 {[%emt 0:00:00]} d5 {[%emt 0:00:01]} 2. e3 {[%emt 0:00:22]} Nf6 {[%emt 0:04:51]} 3. b3 {[%emt 0:03:15]} c5 {[%emt 0:02:54]} 4. Bb2 {[%emt 0:00:26]} Nc6 {[%emt 0:04:33]} 5. Bb5 {[%emt 0:03:02]} Bd7 {[%emt 0:00:46]} 6. O-O {[%emt 0:00:21]} e6 {[%emt 0:04:46]} 7. d4 {[%emt 0:01:24]} cxd4 {[%emt 0:02:05]} 8. exd4 {[%emt 0:00:08]} Bd6 {[%emt 0:02:19]} 9. Nbd2 {[%emt 0:00:24]} O-O {[%emt 0:02:36]} 10. c4 {[%emt 0:04:11]} Ne7 {[%emt 0:01:57]} 11. Bxd7 {[%emt 0:01:17]} Nxd7 {[%emt 0:01:47]} 12. c5 {[%emt 0:03:19]} Bc7 {[%emt 0:02:21]} 13. b4 {[%emt 0:00:09]} b6 {[%emt 0:01:50]} 14. Nb3 {[%emt 0:04:10]} b5 {[%emt 0:03:11]} 15. Qd3 {[%emt 0:02:24]} a6 {[%emt 0:01:36]} 16. a4 {[%emt 0:01:20]} bxa4 {[%emt 0:02:56]} 17. Rxa4 {[%emt 0:00:10]} Nc6 {[%emt 0:00:29]} 18. Bc3 {[%emt 0:02:14]} e5 {[%emt 0:01:12]} 19. dxe5 {[%emt 0:02:38]} Ndxe5 {[%emt 0:00:57]} 20. Nxe5 {[%emt 0:00:32]} Bxe5 {[%emt 0:00:27]} 21. Rfa1 {[%emt 0:02:31]} Qf6 {[%emt 0:03:07]} 22. Bxe5 {[%emt 0:00:59]} Qxe5 {[%emt 0:00:19]} 23. b5 {[%emt 0:00:10]} Ne7 {[%emt 0:17:16]} 24. b6 {[%emt 0:06:25]} Nc6 {[%emt 0:01:08]} 25. Rxa6 {[%emt 0:03:04]} Nb4 {[%emt 0:00:46]} 26. Rxa8 {[%emt 0:00:10]} Nxd3 {[%emt 0:00:11]} 27. b7 {[%emt 0:00:05]} Nb4 {[%emt 0:03:03]} 28. Nd4 {[%emt 0:01:53]} g6 {[%emt 0:29:07]} 29. h3 {[%emt 0:00:28]} Qxd4 {[%emt 0:01:04]} 30. Rxf8+ {[%emt 0:00:07]} Kxf8 {[%emt 0:00:44]} 31. b8=Q+ {[%emt 0:00:11]} Kg7 {[%emt 0:00:09]} 32. Qa7 {[%emt 0:02:53]} Nc6 {[%emt 0:00:21]} 33. Qa3 {[%emt 0:00:07]} Nb4 {[%emt 0:01:43]} 34. Rc1 {[%emt 0:01:41]} Nd3 {[%emt 0:00:10]} 35. Qc3 {[%emt 0:00:06]} Qxc3 {[%emt 0:01:07]} 36. Rxc3 {[%emt 0:00:01]} Nf4 37. c6 1-0

[Event "EYCC Open-U14 2019"]
[Site "Bratislava"]
[Date "2019.08.04"]
[Round "3.48"]
[White "Zemach, Nadav"]
[Black "Priseajniuc, Andrei"]
[Result "1-0"]
[ECO "E08"]
[WhiteElo "1997"]
[BlackElo "1789"]
[Annotator "NA"]
[PlyCount "87"]
[EventDate "2019.08.02"]
[EventType "swiss"]
[EventCountry "SVK"]
[SourceTitle "playchess.com"]
[Source "ChessBase"]
[SourceQuality "1"]
[TimeControl "40/5400+30:1800+30"]

1. d4 {[%emt 0:00:00]} d5 {[%emt 0:00:00]} 2. c4 {[%emt 0:00:00]} e6 {[%emt 0:00:00]} 3. Nf3 {[%emt 0:00:00]} Be7 {[%emt 0:00:06]} 4. g3 {[%emt 0:00:00]} Nf6 {[%emt 0:00:18]} 5. Bg2 {[%emt 0:00:08]} O-O {[%emt 0:00:41]} 6. O-O {[%emt 0:00:09]} Nbd7 {[%emt 0:08:06]} 7. Qc2 {[%emt 0:03:33]} c5 {[%emt 0:11:16]} 8. e3 {[%emt 0:04:10]} b6 {[%emt 0:05:42]} 9. b3 {[%emt 0:09:29]} Ba6 {[%emt 0:10:18]} 10. Nbd2 {[%emt 0:02:36]} Rc8 {[%emt 0:02:09]} 11. Bb2 {[%emt 0:05:46]} cxd4 {[%emt 0:10:31]} 12. exd4 {[%emt 0:07:15]} dxc4 {[%emt 0:03:35]} 13. bxc4 {[%emt 0:01:39]} Bxc4 {[%emt 0:08:44]} 14. Nxc4 {[%emt 0:03:24]} b5 {[%emt 0:00:07]} 15. Rfc1 {[%emt 0:16:36]} Rxc4 {[%emt 0:00:20]} 16. Qe2 {[%emt 0:00:56]} Rxc1+ {[%emt 0:01:09]} 17. Rxc1 {[%emt 0:00:58]} Qb6 {[%emt 0:01:46]} 18. Ne5 {[%emt 0:06:26]} Nxe5 {[%emt 0:01:39]} 19. dxe5 {[%emt 0:01:07]} Nd5 {[%emt 0:00:38]} 20. Bxd5 {[%emt 0:00:39]} exd5 {[%emt 0:00:07]} 21. Qd3 {[%emt 0:01:00]} Rd8 {[%emt 0:03:03]} 22. Bd4 {[%emt 0:00:26]} Qa5 {[%emt 0:13:58]} 23. Qc2 {[%emt 0:04:10]} Qa4 {[%emt 0:14:11]} 24. Qxa4 {[%emt 0:01:20]} bxa4 {[%emt 0:00:01]} 25. Rc7 {[%emt 0:00:02]} Bb4 {[%emt 0:01:10]} 26. Rxa7 {[%emt 0:00:26]} a3 {[%emt 0:00:02]} 27. Rb7 {[%emt 0:06:59]} Bf8 {[%emt 0:01:09]} 28. Kf1 {[%emt 0:01:21]} g5 {[%emt 0:02:08]} 29. Ke2 {[%emt 0:00:13]} Re8 {[%emt 0:01:02]} 30. Kd3 {[%emt 0:00:28]} Bg7 {[%emt 0:00:23]} 31. f4 {[%emt 0:00:23]} gxf4 {[%emt 0:00:32]} 32. gxf4 {[%emt 0:00:01]} Bh6 {[%emt 0:00:23]} 33. Be3 {[%emt 0:05:39]} Ra8 {[%emt 0:00:43]} 34. Rb4 {[%emt 0:07:43]} Bf8 {[%emt 0:00:15]} 35. Rb5 {[%emt 0:00:06]} Rd8 {[%emt 0:00:44]} 36. f5 {[%emt 0:05:22]} Be7 {[%emt 0:00:32]} 37. f6 {[%emt 0:02:01]} Bf8 {[%emt 0:00:15]} 38. Bd4 {[%emt 0:00:47]} h6 {[%emt 0:00:45]} 39. Bc5 {[%emt 0:01:56]} Bxc5 {[%emt 0:00:29]} 40. Rxc5 {[%emt 0:00:00]} Rb8 {[%emt 0:00:00]} 41. Ra5 {[%emt 0:00:25]} Rb2 {[%emt 0:01:03]} 42. Ra8+ {[%emt 0:03:44]} Kh7 {[%emt 0:00:56]} 43. e6 {[%emt 0:00:13]} Rb7 {[%emt 0:01:25]} 44. e7 1-0

[Event "EYCC Open-U14 2019"]
[Site "Bratislava"]
[Date "2019.08.05"]
[Round "4.1"]
[White "Fernandez Lopez, Ruben"]
[Black "Kostolansky, Sebastian Lukas"]
[Result "0-1"]
[ECO "B06"]
[WhiteElo "2207"]
[BlackElo "2406"]
[Annotator "NA"]
[PlyCount "71"]
[EventDate "2019.08.02"]
[EventType "swiss"]
[EventCountry "SVK"]
[SourceTitle "playchess.com"]
[Source "ChessBase"]
[SourceQuality "1"]
[TimeControl "40/5400+30:1800+30"]

1. e4 {[%emt 0:00:00]} g6 {[%emt 0:00:00]} 2. d4 {[%emt 0:00:00]} Bg7 {[%emt 0:00:00]} 3. Nc3 {[%emt 0:00:00]} d6 {[%emt 0:00:00]} 4. Be3 {[%emt 0:00:31]} Nf6 {[%emt 0:00:00]} 5. Qd2 {[%emt 0:00:13]} O-O {[%emt 0:00:06]} 6. O-O-O {[%emt 0:01:58]} c6 {[%emt 0:00:22]} 7. Bh6 {[%emt 0:00:48]} b5 {[%emt 0:03:01]} 8. Bxg7 {[%emt 0:09:14]} Kxg7 {[%emt 0:00:09]} 9. Qe1 {[%emt 0:01:07]} b4 {[%emt 0:07:56]} 10. e5 {[%emt 0:02:07]} bxc3 {[%emt 0:07:23]} 11. exf6+ {[%emt 0:00:06]} exf6 {[%emt 0:00:08]} 12. Qxc3 {[%emt 0:00:06]} Be6 {[%emt 0:03:32]} 13. a3 {[%emt 0:01:30]} Nd7 {[%emt 0:13:28]} 14. h4 {[%emt 0:00:47]} Nb6 {[%emt 0:08:41]} 15. h5 {[%emt 0:02:01]} Rb8 {[%emt 0:01:16]} 16. Qd2 {[%emt 0:07:31]} g5 {[%emt 0:00:10]} 17. h6+ {[%emt 0:12:20]} Kh8 {[%emt 0:00:07]} 18. Qa5 {[%emt 0:00:31]} Qd7 {[%emt 0:04:06]} 19. Nf3 {[%emt 0:09:53]} Bd5 {[%emt 0:06:34]} 20. Nd2 {[%emt 0:04:13]} Qg4 {[%emt 0:10:25]} 21. c4 {[%emt 0:08:47]} Be6 {[%emt 0:11:19]} 22. d5 {[%emt 0:06:36]} cxd5 {[%emt 0:00:44]} 23. Qc3 {[%emt 0:00:40]} Qf4 {[%emt 0:01:02]} 24. g3 {[%emt 0:04:01]} Qe5 {[%emt 0:05:05]} 25. Nf3 {[%emt 0:00:54]} Qxc3+ {[%emt 0:00:44]} 26. bxc3 {[%emt 0:00:01]} Rfc8 {[%emt 0:02:39]} 27. Nd4 {[%emt 0:00:13]} Na4 {[%emt 0:06:41]} 28. Nb5 {[%emt 0:00:14]} a6 {[%emt 0:03:31]} 29. Nxd6 {[%emt 0:00:40]} Rc6 {[%emt 0:01:06]} 30. cxd5 {[%emt 0:01:06]} Rxc3+ {[%emt 0:00:04]} 31. Kd2 {[%emt 0:00:01]} Bxd5 {[%emt 0:00:11]} 32. Rg1 {[%emt 0:00:28]} Bf3 {[%emt 0:00:52]} 33. Bd3 {[%emt 0:00:20]} Bxd1 {[%emt 0:00:29]} 34. Rxd1 {[%emt 0:00:01]} Rxd3+ {[%emt 0:00:11]} 35. Kxd3 {[%emt 0:00:08]} Nb2+ {[%emt 0:00:03]} 36. Kd4 0-1

[Event "EYCC Open-U14 2019"]
[Site "Bratislava"]
[Date "2019.08.05"]
[Round "4.2"]
[White "Razafindratsima, Timothe"]
[Black "Can, Isik"]
[Result "1-0"]
[ECO "B02"]
[WhiteElo "2178"]
[BlackElo "2374"]
[Annotator "NA"]
[PlyCount "63"]
[EventDate "2019.08.02"]
[EventType "swiss"]
[EventCountry "SVK"]
[SourceTitle "playchess.com"]
[Source "ChessBase"]
[SourceQuality "1"]
[TimeControl "40/5400+30:1800+30"]

1. e4 {[%emt 0:00:00]} Nf6 {[%emt 0:00:00]} 2. e5 {[%emt 0:00:00]} Nd5 {[%emt 0:00:01]} 3. c4 {[%emt 0:00:00]} Nb6 {[%emt 0:00:04]} 4. d4 {[%emt 0:00:00]} d6 {[%emt 0:00:04]} 5. Nf3 {[%emt 0:00:00]} Bg4 {[%emt 0:03:54]} 6. exd6 {[%emt 0:00:25]} exd6 {[%emt 0:00:02]} 7. Be2 {[%emt 0:00:27]} Be7 {[%emt 0:00:28]} 8. O-O {[%emt 0:00:19]} O-O {[%emt 0:00:37]} 9. Nc3 {[%emt 0:00:12]} Nc6 {[%emt 0:00:31]} 10. b3 {[%emt 0:00:56]} Bf6 {[%emt 0:00:07]} 11. Be3 {[%emt 0:00:05]} d5 {[%emt 0:00:36]} 12. c5 {[%emt 0:00:21]} Nc8 {[%emt 0:00:02]} 13. b4 {[%emt 0:02:22]} N8e7 {[%emt 0:08:59]} 14. h3 {[%emt 0:08:43]} Be6 {[%emt 0:17:50]} 15. Qd2 {[%emt 0:06:27]} b6 {[%emt 0:08:42]} 16. Rab1 {[%emt 0:03:22]} h6 {[%emt 0:04:22]} 17. Rfc1 {[%emt 0:05:57]} g5 {[%emt 0:01:22]} 18. Nh2 {[%emt 0:01:31]} Bg7 {[%emt 0:08:11]} 19. h4 {[%emt 0:02:24]} bxc5 {[%emt 0:06:09]} 20. bxc5 {[%emt 0:00:52]} gxh4 {[%emt 0:02:58]} 21. Bxh6 {[%emt 0:01:30]} Bxh6 {[%emt 0:03:06]} 22. Qxh6 {[%emt 0:00:05]} Nf5 {[%emt 0:00:09]} 23. Qf4 {[%emt 0:03:16]} Ncxd4 {[%emt 0:05:21]} 24. Ng4 {[%emt 0:04:50]} Kh8 {[%emt 0:03:00]} 25. Rd1 {[%emt 0:01:39]} Nxe2+ {[%emt 0:03:49]} 26. Nxe2 {[%emt 0:00:05]} f6 {[%emt 0:02:22]} 27. Nd4 {[%emt 0:00:41]} Nxd4 {[%emt 0:00:42]} 28. Qh6+ {[%emt 0:00:38]} Kg8 {[%emt 0:00:01]} 29. Qg6+ {[%emt 0:01:51]} Kh8 {[%emt 0:00:02]} 30. Rxd4 {[%emt 0:02:18]} Qe7 {[%emt 0:01:22]} 31. Re1 {[%emt 0:06:19]} Rf7 {[%emt 0:06:05]} 32. Rxd5 {[%emt 0:04:01]} 1-0

[Event "EYCC Open-U14 2019"]
[Site "Bratislava"]
[Date "2019.08.05"]
[Round "4.4"]
[White "Sahakyan, Aleks"]
[Black "Vojta, Jakub"]
[Result "1-0"]
[ECO "B80"]
[WhiteElo "1856"]
[BlackElo "2238"]
[Annotator "NA"]
[PlyCount "65"]
[EventDate "2019.08.02"]
[EventType "swiss"]
[EventCountry "SVK"]
[SourceTitle "playchess.com"]
[Source "ChessBase"]
[SourceQuality "1"]
[TimeControl "40/5400+30:1800+30"]

1. e4 {[%emt 0:00:00]} c5 {[%emt 0:00:00]} 2. Nf3 {[%emt 0:00:00]} e6 {[%emt 0:00:00]} 3. d4 {[%emt 0:00:06]} cxd4 {[%emt 0:00:00]} 4. Nxd4 {[%emt 0:00:04]} Nf6 {[%emt 0:00:00]} 5. Nc3 {[%emt 0:00:07]} d6 {[%emt 0:00:52]} 6. Bg5 {[%emt 0:00:34]} Be7 {[%emt 0:00:57]} 7. f4 {[%emt 0:02:21]} O-O {[%emt 0:08:09]} 8. Qf3 {[%emt 0:00:50]} Nc6 {[%emt 0:03:10]} 9. O-O-O {[%emt 0:02:52]} Qb6 {[%emt 0:10:29]} 10. Nb3 {[%emt 0:09:52]} Rd8 {[%emt 0:04:57]} 11. g4 {[%emt 0:01:20]} a5 {[%emt 0:02:54]} 12. Bb5 {[%emt 0:03:21]} Kf8 {[%emt 0:15:41]} 13. Bh4 {[%emt 0:07:40]} Ng8 {[%emt 0:02:45]} 14. Bf2 {[%emt 0:00:38]} Qc7 {[%emt 0:00:21]} 15. Na4 {[%emt 0:00:41]} Nb4 {[%emt 0:02:00]} 16. c3 {[%emt 0:00:43]} Bd7 {[%emt 0:07:42]} 17. Bxd7 {[%emt 0:02:17]} Qxd7 {[%emt 0:08:48]} 18. Nb6 {[%emt 0:00:24]} Qc6 {[%emt 0:02:16]} 19. Kb1 {[%emt 0:00:39]} Ra6 {[%emt 0:06:26]} 20. cxb4 {[%emt 0:01:40]} axb4 {[%emt 0:03:56]} 21. Rc1 {[%emt 0:02:24]} Qb5 {[%emt 0:00:28]} 22. g5 {[%emt 0:00:31]} Rxb6 {[%emt 0:01:05]} 23. Bxb6 {[%emt 0:00:25]} Qxb6 {[%emt 0:00:05]} 24. Nd2 {[%emt 0:01:07]} d5 {[%emt 0:01:07]} 25. exd5 {[%emt 0:01:58]} exd5 {[%emt 0:00:49]} 26. Rhe1 {[%emt 0:00:33]} d4 {[%emt 0:06:24]} 27. Nc4 {[%emt 0:03:15]} Qb5 {[%emt 0:00:37]} 28. Qd3 {[%emt 0:02:29]} Qa4 {[%emt 0:04:30]} 29. Ne5 {[%emt 0:01:11]} f6 {[%emt 0:03:37]} 30. g6 {[%emt 0:00:32]} h5 {[%emt 0:00:42]} 31. Nf3 {[%emt 0:01:14]} Qd7 {[%emt 0:01:12]} 32. Re4 {[%emt 0:03:25]} Qf5 {[%emt 0:00:39]} 33. Nxd4 {[%emt 0:00:10]} 1-0

[Event "EYCC Open-U14 2019"]
[Site "Bratislava"]
[Date "2019.08.05"]
[Round "4.5"]
[White "Borhy, Marcell"]
[Black "Rozen, Eytan"]
[Result "1/2-1/2"]
[ECO "A40"]
[WhiteElo "2382"]
[BlackElo "2260"]
[Annotator "NA"]
[PlyCount "56"]
[EventDate "2019.08.02"]
[EventType "swiss"]
[EventCountry "SVK"]
[SourceTitle "playchess.com"]
[Source "ChessBase"]
[SourceQuality "1"]
[TimeControl "40/5400+30:1800+30"]

1. d4 {[%emt 0:00:00]} Nf6 {[%emt 0:00:35]} 2. c4 {[%emt 0:00:00]} e6 {[%emt 0:00:46]} 3. g3 {[%emt 0:00:08]} d5 {[%emt 0:00:12]} 4. Nf3 {[%emt 0:00:07]} Bb4+ {[%emt 0:00:59]} 5. Bd2 {[%emt 0:00:02]} Be7 {[%emt 0:00:36]} 6. Bg2 {[%emt 0:00:13]} O-O {[%emt 0:00:43]} 7. O-O {[%emt 0:00:18]} c6 {[%emt 0:00:48]} 8. Na3 {[%emt 0:03:18]} Nbd7 {[%emt 0:06:06]} 9. Rc1 {[%emt 0:00:15]} Ne4 {[%emt 0:02:02]} 10. Be3 {[%emt 0:02:15]} f5 {[%emt 0:17:17]} 11. cxd5 {[%emt 0:02:53]} exd5 {[%emt 0:01:01]} 12. Nc2 {[%emt 0:06:29]} g5 {[%emt 0:12:32]} 13. Nd2 {[%emt 0:03:05]} f4 {[%emt 0:15:06]} 14. gxf4 {[%emt 0:04:29]} gxf4 {[%emt 0:04:08]} 15. Nxe4 {[%emt 0:00:06]} dxe4 {[%emt 0:12:10]} 16. Bd2 {[%emt 0:00:08]} Bd6 {[%emt 0:00:47]} 17. Bxe4 {[%emt 0:14:51]} f3 {[%emt 0:02:03]} 18. exf3 {[%emt 0:01:51]} Qh4 {[%emt 0:01:37]} 19. f4 {[%emt 0:02:16]} Rxf4 {[%emt 0:02:12]} 20. Bxf4 {[%emt 0:03:45]} Bxf4 {[%emt 0:02:57]} 21. Re1 {[%emt 0:00:55]} Nf6 {[%emt 0:06:31]} 22. Bg2 {[%emt 0:07:40]} Qxh2+ {[%emt 0:03:03]} 23. Kf1 {[%emt 0:00:01]} Bxc1 {[%emt 0:05:06]} 24. Qxc1 {[%emt 0:00:23]} Bh3 {[%emt 0:00:35]} 25. Qg5+ {[%emt 0:03:26]} Kf7 {[%emt 0:00:02]} 26. Bxh3 {[%emt 0:00:51]} Qxh3+ {[%emt 0:00:36]} 27. Ke2 {[%emt 0:02:27]} Rg8 {[%emt 0:01:24]} 28. Qf4 {[%emt 0:06:31]} Qg4+ {[%emt 0:00:59]} 1/2-1/2

[Event "EYCC Open-U14 2019"]
[Site "Bratislava"]
[Date "2019.08.05"]
[Round "4.8"]
[White "Krastev, Alexander"]
[Black "Kusa, Jakub"]
[Result "1-0"]
[ECO "B10"]
[WhiteElo "2325"]
[BlackElo "2199"]
[Annotator "NA"]
[PlyCount "69"]
[EventDate "2019.08.02"]
[EventType "swiss"]
[EventCountry "SVK"]
[SourceTitle "playchess.com"]
[Source "ChessBase"]
[SourceQuality "1"]
[TimeControl "40/5400+30:1800+30"]

1. e4 {[%emt 0:00:00]} c6 {[%emt 0:00:00]} 2. d3 {[%emt 0:00:00]} d5 {[%emt 0:00:09]} 3. Nd2 {[%emt 0:00:05]} dxe4 {[%emt 0:01:40]} 4. dxe4 {[%emt 0:00:16]} Nf6 {[%emt 0:02:20]} 5. Ngf3 {[%emt 0:00:47]} Bg4 {[%emt 0:01:18]} 6. e5 {[%emt 0:10:38]} Nd5 {[%emt 0:03:02]} 7. h3 {[%emt 0:00:32]} Bh5 {[%emt 0:01:08]} 8. e6 {[%emt 0:10:57]} fxe6 {[%emt 0:03:20]} 9. Be2 {[%emt 0:05:12]} Nf4 {[%emt 0:04:05]} 10. O-O {[%emt 0:00:25]} Qd6 {[%emt 0:02:41]} 11. Ne4 {[%emt 0:03:25]} Qxd1 {[%emt 0:01:53]} 12. Bxd1 {[%emt 0:00:05]} Nd5 {[%emt 0:08:16]} 13. Nc5 {[%emt 0:07:00]} b6 {[%emt 0:05:05]} 14. Nxe6 {[%emt 0:01:03]} Bf7 {[%emt 0:00:46]} 15. Nfg5 {[%emt 0:02:35]} h6 {[%emt 0:01:50]} 16. c4 {[%emt 0:01:28]} hxg5 {[%emt 0:02:55]} 17. cxd5 {[%emt 0:00:06]} Na6 {[%emt 0:02:19]} 18. Bxg5 {[%emt 0:05:32]} Rb8 {[%emt 0:02:51]} 19. Bf4 {[%emt 0:03:12]} Bxe6 {[%emt 0:02:08]} 20. Bxb8 {[%emt 0:01:49]} Bxh3 {[%emt 0:01:01]} 21. gxh3 {[%emt 0:00:38]} Nxb8 {[%emt 0:00:05]} 22. dxc6 {[%emt 0:00:07]} Kd8 {[%emt 0:00:47]} 23. Rc1 {[%emt 0:00:32]} Kc7 {[%emt 0:00:09]} 24. Bg4 {[%emt 0:00:30]} e5 {[%emt 0:00:35]} 25. Rfd1 {[%emt 0:00:41]} Be7 {[%emt 0:01:05]} 26. b4 {[%emt 0:01:12]} Bxb4 {[%emt 0:00:23]} 27. Rd5 {[%emt 0:00:59]} Bc5 {[%emt 0:01:50]} 28. Rxe5 {[%emt 0:01:08]} Nxc6 {[%emt 0:00:08]} 29. Rg5 {[%emt 0:00:53]} Rf8 {[%emt 0:00:38]} 30. Rxg7+ {[%emt 0:00:48]} Kb8 {[%emt 0:00:25]} 31. Rf1 {[%emt 0:01:21]} Ne5 32. Rg5 {[%emt 0:02:24]} Bd4 {[%emt 0:01:41]} 33. Kg2 {[%emt 0:02:25]} Nd3 {[%emt 0:00:19]} 34. Rf5 {[%emt 0:00:28]} Nf4+ {[%emt 0:00:09]} 35. Kf3 {[%emt 0:00:35]} 1-0

[Event "EYCC Open-U14 2019"]
[Site "Bratislava"]
[Date "2019.08.05"]
[Round "4.10"]
[White "Pozzari, Simone"]
[Black "Makoveev, Ilya"]
[Result "0-1"]
[ECO "B54"]
[WhiteElo "2179"]
[BlackElo "2288"]
[Annotator "NA"]
[PlyCount "78"]
[EventDate "2019.08.02"]
[EventType "swiss"]
[EventCountry "SVK"]
[SourceTitle "playchess.com"]
[Source "ChessBase"]
[SourceQuality "1"]
[TimeControl "40/5400+30:1800+30"]

1. e4 {[%emt 0:00:00]} c5 {[%emt 0:00:00]} 2. Nf3 {[%emt 0:00:00]} d6 {[%emt 0:00:00]} 3. d4 {[%emt 0:00:00]} cxd4 {[%emt 0:00:20]} 4. Nxd4 {[%emt 0:00:05]} Nf6 {[%emt 0:00:19]} 5. f3 {[%emt 0:00:19]} e5 {[%emt 0:01:21]} 6. Nb3 {[%emt 0:00:08]} a5 {[%emt 0:03:30]} 7. Bg5 {[%emt 0:16:11]} Be7 {[%emt 0:06:03]} 8. Bb5+ {[%emt 0:13:01]} Bd7 {[%emt 0:10:31]} 9. Bxd7+ {[%emt 0:02:39]} Nbxd7 {[%emt 0:00:23]} 10. c4 {[%emt 0:04:09]} a4 {[%emt 0:14:21]} 11. Nc1 {[%emt 0:00:44]} Qb6 {[%emt 0:05:32]} 12. Qe2 {[%emt 0:01:03]} Rc8 {[%emt 0:05:13]} 13. Nc3 {[%emt 0:27:15]} Qb4 {[%emt 0:04:45]} 14. Nd3 {[%emt 0:07:06]} Qxc4 {[%emt 0:01:02]} 15. Nd5 {[%emt 0:04:02]} Qb5 {[%emt 0:14:41]} 16. Bxf6 {[%emt 0:01:07]} Nxf6 {[%emt 0:04:51]} 17. N3b4 {[%emt 0:05:00]} Qxe2+ {[%emt 0:01:02]} 18. Kxe2 {[%emt 0:00:02]} Nxd5 {[%emt 0:00:13]} 19. Nxd5 {[%emt 0:04:15]} Rc2+ {[%emt 0:12:13]} 20. Kd3 {[%emt 0:00:02]} Rxg2 {[%emt 0:00:34]} 21. Rhc1 {[%emt 0:03:45]} Bd8 {[%emt 0:00:58]} 22. Rc8 {[%emt 0:06:08]} O-O {[%emt 0:01:40]} 23. Rac1 {[%emt 0:02:13]} g6 {[%emt 0:01:13]} 24. R1c2 {[%emt 0:02:09]} Rxc2 {[%emt 0:05:34]} 25. Kxc2 {[%emt 0:00:01]} Ba5 {[%emt 0:03:21]} 26. Nf6+ {[%emt 0:00:26]} Kg7 {[%emt 0:00:01]} 27. Ne8+ {[%emt 0:00:03]} Kh6 {[%emt 0:00:13]} 28. Nxd6 {[%emt 0:00:01]} Rxc8+ {[%emt 0:00:05]} 29. Nxc8 {[%emt 0:00:03]} Bc7 {[%emt 0:01:11]} 30. Ne7 {[%emt 0:00:49]} Kg5 {[%emt 0:00:08]} 31. Nd5 {[%emt 0:01:22]} Bd8 {[%emt 0:01:28]} 32. Kd3 {[%emt 0:01:00]} Kh4 {[%emt 0:00:04]} 33. Nc3 {[%emt 0:00:21]} Kh3 {[%emt 0:00:26]} 34. Nxa4 {[%emt 0:00:35]} Kxh2 {[%emt 0:00:02]} 35. Nc3 {[%emt 0:00:30]} h5 {[%emt 0:00:21]} 36. Ne2 {[%emt 0:00:49]} h4 {[%emt 0:00:51]} 37. f4 {[%emt 0:00:01]} h3 {[%emt 0:00:20]} 38. fxe5 {[%emt 0:00:38]} g5 {[%emt 0:00:17]} 39. Nd4 {[%emt 0:00:46]} Kg2 {[%emt 0:00:14]} 0-1

[Event "EYCC Open-U14 2019"]
[Site "Bratislava"]
[Date "2019.08.05"]
[Round "4.11"]
[White "Jun, Rudolf Jr."]
[Black "Antonica, Dragos-Andrei"]
[Result "1/2-1/2"]
[ECO "C09"]
[WhiteElo "2200"]
[BlackElo "2124"]
[Annotator "NA"]
[PlyCount "118"]
[EventDate "2019.08.02"]
[EventType "swiss"]
[EventCountry "SVK"]
[SourceTitle "playchess.com"]
[Source "ChessBase"]
[SourceQuality "1"]
[TimeControl "40/5400+30:1800+30"]

1. e4 {[%emt 0:00:00]} e6 {[%emt 0:00:00]} 2. d4 {[%emt 0:00:00]} d5 {[%emt 0:00:00]} 3. Nd2 {[%emt 0:00:00]} c5 {[%emt 0:00:00]} 4. exd5 {[%emt 0:00:31]} exd5 {[%emt 0:00:00]} 5. Ngf3 {[%emt 0:00:17]} Nc6 {[%emt 0:00:00]} 6. c3 {[%emt 0:05:52]} Nf6 {[%emt 0:20:07]} 7. Bb5 {[%emt 0:05:42]} cxd4 {[%emt 0:03:23]} 8. Nxd4 {[%emt 0:01:22]} Bd7 {[%emt 0:00:11]} 9. N2f3 {[%emt 0:02:04]} Bd6 {[%emt 0:05:49]} 10. O-O {[%emt 0:00:54]} O-O {[%emt 0:00:03]} 11. Bd3 {[%emt 0:02:19]} h6 {[%emt 0:14:17]} 12. Re1 {[%emt 0:05:45]} Re8 {[%emt 0:06:52]} 13. Nf5 {[%emt 0:05:28]} Rxe1+ {[%emt 0:07:46]} 14. Qxe1 {[%emt 0:00:32]} Bxf5 {[%emt 0:00:23]} 15. Bxf5 {[%emt 0:00:08]} Qb6 {[%emt 0:00:06]} 16. Rb1 {[%emt 0:06:47]} d4 {[%emt 0:06:01]} 17. cxd4 {[%emt 0:03:25]} Nxd4 {[%emt 0:00:24]} 18. Nxd4 {[%emt 0:00:33]} Qxd4 {[%emt 0:00:06]} 19. g3 {[%emt 0:02:11]} Qd5 {[%emt 0:11:44]} 20. Bh3 {[%emt 0:01:37]} Re8 {[%emt 0:02:40]} 21. Be3 {[%emt 0:00:35]} Bc5 {[%emt 0:03:55]} 22. Qd1 {[%emt 0:03:03]} Qxd1+ {[%emt 0:06:51]} 23. Rxd1 {[%emt 0:00:11]} Bxe3 {[%emt 0:00:02]} 24. fxe3 {[%emt 0:00:11]} Rxe3 {[%emt 0:00:02]} 25. Kf2 {[%emt 0:00:34]} Re7 {[%emt 0:00:29]} 26. Kf3 {[%emt 0:01:17]} g6 {[%emt 0:01:32]} 27. Bf1 {[%emt 0:01:34]} Rd7 {[%emt 0:06:13]} 28. Rxd7 {[%emt 0:01:12]} Nxd7 {[%emt 0:00:02]} 29. Ke4 {[%emt 0:00:18]} Kf8 {[%emt 0:00:42]} 30. Kd5 {[%emt 0:00:32]} Ke7 {[%emt 0:00:05]} 31. Bg2 {[%emt 0:00:41]} Nb8 {[%emt 0:03:14]} 32. Kc5 {[%emt 0:00:24]} Na6+ {[%emt 0:01:18]} 33. Kb5 {[%emt 0:01:26]} Nc7+ {[%emt 0:00:17]} 34. Kc5 {[%emt 0:00:04]} Ne6+ {[%emt 0:01:26]} 35. Kb5 {[%emt 0:00:12]} Nc7+ {[%emt 0:00:46]} 36. Kc5 {[%emt 0:00:14]} b6+ {[%emt 0:00:17]} 37. Kc6 {[%emt 0:00:13]} Ne8 {[%emt 0:00:15]} 38. Kb7 {[%emt 0:00:22]} Kd8 {[%emt 0:01:05]} 39. Kxa7 {[%emt 0:00:23]} Kc7 {[%emt 0:00:03]} 40. a4 {[%emt 0:00:00]} Nd6 {[%emt 0:00:00]} 41. b4 {[%emt 0:02:06]} f5 {[%emt 0:09:00]} 42. Ka6 {[%emt 0:01:49]} Nc4 {[%emt 0:04:11]} 43. Kb5 {[%emt 0:01:37]} Na3+ {[%emt 0:02:32]} 44. Ka6 {[%emt 0:00:09]} Nc4 {[%emt 0:00:01]} 45. a5 {[%emt 0:05:10]} bxa5 {[%emt 0:00:46]} 46. bxa5 {[%emt 0:00:08]} Nd6 {[%emt 0:05:45]} 47. Bf3 {[%emt 0:00:33]} g5 {[%emt 0:00:43]} 48. Bh1 {[%emt 0:02:46]} h5 {[%emt 0:02:57]} 49. h4 {[%emt 0:02:20]} g4 {[%emt 0:07:38]} 50. Bg2 {[%emt 0:02:27]} Nc4 {[%emt 0:00:11]} 51. Kb5 {[%emt 0:01:02]} Ne3 {[%emt 0:00:15]} 52. Bh1 {[%emt 0:01:17]} f4 {[%emt 0:00:36]} 53. gxf4 {[%emt 0:00:22]} g3 {[%emt 0:00:36]} 54. Kc5 {[%emt 0:05:52]} g2 {[%emt 0:01:19]} 55. Bxg2 {[%emt 0:00:04]} Nxg2 {[%emt 0:00:03]} 56. Kd5 {[%emt 0:00:23]} Nxh4 {[%emt 0:02:16]} 57. Ke4 {[%emt 0:00:17]} Kc6 {[%emt 0:00:36]} 58. f5 {[%emt 0:00:09]} Kb5 {[%emt 0:00:28]} 59. f6 {[%emt 0:00:55]} Kxa5 {[%emt 0:00:15]} 1/2-1/2